bitfinex/quotes_BTCUSD_20240715
["timestamp","ask_amount","ask_price","bid_price","bid_amount"]
[1721039259663,0.00263861,62889.0,62888.0,3.29193999]
[1721039261003,0.00263861,62889.0,62888.0,2.59193999]
[1721039262593,0.00263861,62889.0,62888.0,2.10740963]
[1721039262785,0.00263861,62889.0,62888.0,2.59194622]
[1721039265966,0.00263861,62889.0,62888.0,2.59194371]
[1721039266464,0.00263861,62889.0,62888.0,3.29194371]
[1721039269269,0.00263861,62889.0,62888.0,3.29193976]
[1721039269728,0.00263861,62889.0,62888.0,3.29194012]
[1721039270493,0.00263861,62889.0,62888.0,3.29285312]
[1721039272334,0.00263861,62889.0,62888.0,2.80832263]
[1721039272541,0.00263861,62889.0,62888.0,3.29285396]
[1721039274674,0.00226977,62889.0,62888.0,3.29285396]
[1721039274860,0.00226977,62889.0,62888.0,2.59285396]
[1721039275700,0.00226977,62889.0,62888.0,2.10832263]
[1721039275889,0.00226977,62889.0,62888.0,2.65885734]
[1721039276951,0.00226977,62889.0,62888.0,2.65185734]
[1721039277144,0.00226977,62889.0,62888.0,2.65885734]
[1721039277546,0.00226977,62889.0,62888.0,2.65285734]
[1721039277750,0.00226977,62889.0,62888.0,3.35285734]
[1721039278096,0.00226977,62889.0,62888.0,3.35885734]
[1721039278458,0.00226977,62889.0,62888.0,3.35285734]
[1721039279066,0.00226977,62889.0,62888.0,2.99334198]
[1721039279360,0.00226977,62889.0,62888.0,3.34585445]
[1721039279560,0.00226977,62889.0,62888.0,3.35885445]
[1721039280973,0.00226977,62889.0,62888.0,2.65885445]
[1721039281599,0.00226977,62889.0,62888.0,2.65885428]
[1721039281999,0.00226977,62889.0,62888.0,2.65885594]
[1721039284229,0.00226977,62889.0,62888.0,3.35885594]
[1721039284729,0.00226977,62889.0,62888.0,3.35885574]
[1721039285184,0.00226977,62889.0,62888.0,3.52387234]
[1721039288015,0.00226977,62889.0,62888.0,3.52387195]
[1721039288239,0.00226977,62889.0,62888.0,2.82387195]
[1721039289389,0.14476977,62889.0,62888.0,2.33854695]
[1721039289608,0.14476977,62889.0,62888.0,2.26403035]
[1721039289824,0.14476977,62889.0,62888.0,2.38331491]
[1721039290551,0.14476977,62889.0,62888.0,2.37731491]
[1721039291110,0.07896977,62889.0,62888.0,2.37731491]
[1721039291274,0.07896977,62889.0,62888.0,2.88529549]
[1721039291507,0.07896977,62889.0,62888.0,3.07632003]
[1721039291773,0.07896977,62889.0,62888.0,3.08332003]
[1721039292417,0.00226977,62889.0,62888.0,3.08332003]
[1721039293468,0.00226977,62889.0,62888.0,2.96403547]
[1721039293675,0.00226977,62889.0,62888.0,3.08333042]
[1721039294173,0.00226977,62889.0,62888.0,2.96403547]
[1721039294568,0.00226977,62889.0,62888.0,2.96404431]
[1721039294833,0.00226977,62889.0,62888.0,3.52346931]
[1721039295016,0.00226977,62889.0,62888.0,3.10544347]
[1721039295170,0.15096977,62889.0,62888.0,2.96404347]
[1721039295686,0.15096977,62889.0,62888.0,3.08334494]
[1721039296309,0.15096977,62889.0,62888.0,3.01733681]
[1721039296515,0.08506977,62889.0,62888.0,3.08334547]
[1721039296692,0.08506977,62889.0,62888.0,2.964044]
[1721039296693,0.00226977,62889.0,62888.0,2.964044]
[1721039297771,0.00226977,62889.0,62888.0,2.76601908]
[1721039298005,0.00226977,62889.0,62888.0,2.96404552]
[1721039299492,0.00207839,62889.0,62888.0,2.96404552]
[1721039300431,0.00207839,62889.0,62888.0,2.26404552]
[1721039300832,0.00207839,62889.0,62888.0,2.17354552]
[1721039301068,0.00207839,62889.0,62888.0,1.71349763]
[1721039301198,0.00207839,62889.0,62888.0,2.26404628]
[1721039303643,0.14297839,62889.0,62888.0,1.76651282]
[1721039303851,0.14297839,62889.0,62888.0,1.97634794]
[1721039304012,0.14297839,62889.0,62888.0,1.85701282]
[1721039304520,0.14297839,62889.0,62888.0,1.85703274]
[1721039304931,0.14297839,62889.0,62888.0,2.55703274]
[1721039305217,0.14297839,62889.0,62888.0,2.65249667]
[1721039305757,0.14297839,62889.0,62888.0,2.55703274]
[1721039306493,0.14297839,62889.0,62888.0,1.59985283]
[1721039306841,0.14297839,62889.0,62888.0,0.01879272]
[1721039306842,1.17888172,62889.0,62888.0,0.01879272]
[1721039306977,1.17888172,62889.0,62888.0,0.007913]
[1721039307322,1.13118117,62889.0,62888.0,0.013913]
[1721039307536,1.13128581,62889.0,62888.0,0.013913]
[1721039307716,1.13128581,62889.0,62888.0,0.000913]
[1721039307920,1.13161484,62889.0,62888.0,0.000913]
[1721039309004,1.13161484,62889.0,62888.0,0.001913]
[1721039309224,1.13161484,62889.0,62888.0,0.009913]
[1721039309440,1.13161484,62889.0,62888.0,0.008913]
[1721039309641,1.13161484,62889.0,62888.0,0.000913]
[1721039309900,1.13161484,62889.0,62888.0,0.001913]
[1721039310072,1.44963484,62889.0,62888.0,0.001913]
[1721039310278,1.44963484,62889.0,62888.0,0.002913]
[1721039310279,1.65163484,62889.0,62888.0,0.002913]
[1721039310695,2.09031523,62889.0,62888.0,0.002913]
[1721039310888,1.29541593,62886.0,62885.0,0.000913]
[1721039311092,2.01875901,62886.0,62885.0,0.000913]
[1721039311269,1.9551196,62886.0,62885.0,0.000913]
[1721039311471,1.533196,62882.0,62881.0,0.000913]
[1721039311673,1.96927042,62882.0,62881.0,0.000913]
[1721039312443,2.54944433,62882.0,62881.0,0.000913]
[1721039312649,2.54944433,62882.0,62870.0,0.0006041]
[1721039312650,0.61738393,62871.0,62870.0,0.0006041]
[1721039312885,0.31121693,62858.0,62849.0,0.4863143]
[1721039313068,0.09212893,62850.0,62849.0,0.4863143]
[1721039313280,0.09212893,62849.0,62848.0,0.200913]
[1721039313409,0.09212893,62849.0,62848.0,0.450527]
[1721039313610,0.09212893,62853.0,62848.0,0.45353091]
[1721039313820,0.09212893,62853.0,62852.0,0.56781]
[1721039314363,0.09212893,62853.0,62852.0,0.249603]
[1721039315001,0.07212893,62853.0,62852.0,0.349603]
[1721039315810,0.07312893,62853.0,62852.0,0.66781]
[1721039316137,0.07212893,62853.0,62852.0,0.66781]
[1721039316365,0.07412893,62853.0,62852.0,0.66881]
[1721039317198,0.002,62853.0,62852.0,0.987017]
[1721039317393,0.002,62853.0,62852.0,1.305224]
[1721039318789,0.09920915,62858.0,62857.0,0.477273]
[1721039319007,0.09920915,62858.0,62857.0,0.667773]
[1721039320560,0.10020915,62858.0,62857.0,0.667773]
[1721039322830,0.10020915,62858.0,62857.0,0.349591]
[1721039323039,0.10020915,62858.0,62857.0,0.1]
[1721039323236,0.10020915,62858.0,62856.0,0.1]
[1721039323237,0.13232893,62857.0,62856.0,0.1]
[1721039324473,0.20982893,62857.0,62856.0,0.1]
[1721039324692,0.14962893,62851.0,62850.0,0.159107]
[1721039325088,0.14962893,62851.0,62850.0,0.259107]
[1721039325496,0.20982893,62851.0,62850.0,0.259107]
[1721039325689,0.20982893,62851.0,62850.0,0.1]
[1721039326073,0.21082893,62851.0,62850.0,0.101]
[1721039326514,0.21182893,62851.0,62850.0,0.103]
[1721039329312,0.21182893,62851.0,62850.0,0.003]
[1721039331821,0.21182893,62851.0,62850.0,0.0935]
[1721039334626,0.21182893,62851.0,62850.0,0.003]
[1721039334627,1.06735893,62851.0,62850.0,0.003]
[1721039334872,1.22768593,62849.0,62848.0,0.000913]
[1721039335075,1.64967649,62849.0,62848.0,0.000913]
[1721039335328,2.28612249,62849.0,62848.0,0.000913]
[1721039336206,2.28631797,62849.0,62848.0,0.000913]
[1721039336414,2.19581797,62849.0,62848.0,0.000913]
[1721039336607,2.20981797,62849.0,62848.0,0.000913]
[1721039336974,2.19581797,62849.0,62848.0,0.000913]
[1721039337176,2.20981797,62849.0,62848.0,0.000913]
[1721039337479,2.22381797,62849.0,62848.0,0.000913]
[1721039339304,2.19594984,62849.0,62848.0,0.000913]
[1721039339505,2.22368514,62849.0,62848.0,0.000913]
[1721039341806,1.87772684,62849.0,62848.0,0.000913]
[1721039341944,1.60548405,62849.0,62848.0,0.000913]
[1721039343238,1.80548405,62849.0,62848.0,0.000913]
[1721039343575,1.60548405,62849.0,62848.0,0.000913]
[1721039344016,1.57748405,62849.0,62848.0,0.000913]
[1721039344215,1.59148405,62849.0,62848.0,0.000913]
[1721039344457,1.60548405,62849.0,62848.0,0.000913]
[1721039344636,1.59148405,62849.0,62848.0,0.000913]
[1721039344982,1.59172684,62849.0,62848.0,0.000913]
[1721039345260,1.61946482,62849.0,62848.0,0.000913]
[1721039345443,1.30122683,62849.0,62848.0,0.000913]
[1721039345822,1.13910892,62849.0,62848.0,0.000913]
[1721039346022,0.75998592,62849.0,62848.0,0.000913]
[1721039346361,0.36096292,62849.0,62848.0,0.000913]
[1721039346536,0.67918592,62849.0,62848.0,0.000913]
[1721039346746,0.67918592,62849.0,62848.0,0.01046123]
[1721039346939,0.67918592,62849.0,62848.0,0.000913]
[1721039347337,0.14185192,62849.0,62848.0,0.000913]
[1721039347584,0.11412893,62849.0,62848.0,0.560855]
[1721039347722,0.11412893,62849.0,62848.0,0.01046123]
[1721039347931,0.17412893,62849.0,62848.0,0.01046123]
[1721039348316,0.10012893,62849.0,62848.0,0.01046123]
[1721039349261,0.10012893,62849.0,62848.0,0.48780323]
[1721039349860,0.07812893,62849.0,62848.0,0.48780323]
[1721039350184,0.08712893,62849.0,62848.0,0.16957523]
[1721039350496,0.07212893,62849.0,62848.0,0.16957523]
[1721039350666,0.07212893,62849.0,62848.0,0.17157523]
[1721039350866,0.07212893,62849.0,62848.0,0.49180323]
[1721039357314,0.07212893,62849.0,62848.0,0.01446123]
[1721039357512,0.13212893,62849.0,62848.0,0.01446123]
[1721039359132,0.07212893,62849.0,62848.0,0.01446123]
[1721039359313,0.07212893,62849.0,62848.0,0.17357523]
[1721039359465,0.07212893,62849.0,62848.0,0.01446123]
[1721039360720,0.07193743,62849.0,62848.0,0.01446123]
[1721039365280,0.09961099,62849.0,62848.0,0.01446123]
[1721039366526,0.15961099,62849.0,62848.0,0.01446123]
[1721039367226,0.09961099,62849.0,62848.0,0.01446123]
[1721039367430,0.09961099,62849.0,62848.0,0.01246123]
[1721039367769,0.15958611,62849.0,62848.0,0.01246123]
[1721039368215,0.15958611,62849.0,62848.0,0.01046123]
[1721039369623,0.09958611,62849.0,62848.0,0.01046123]
[1721039369828,0.15958611,62849.0,62848.0,0.01046123]
[1721039370769,0.09958611,62849.0,62848.0,0.01046123]
[1721039371172,0.09960179,62849.0,62848.0,0.07316123]
[1721039371531,0.09960212,62849.0,62848.0,0.07316123]
[1721039372758,0.09960212,62849.0,62848.0,0.01046123]
[1721039372759,1.03235912,62849.0,62848.0,0.01046123]
[1721039372963,1.04797656,62849.0,62848.0,0.01046123]
[1721039373133,1.04797656,62849.0,62848.0,0.000913]
[1721039374394,1.05376878,62849.0,62848.0,0.000913]
[1721039374796,1.05876878,62849.0,62848.0,0.000913]
[1721039377638,1.05877983,62849.0,62848.0,0.000913]
[1721039377839,1.05877982,62849.0,62848.0,0.000913]
[1721039378400,0.98157982,62849.0,62848.0,0.000913]
[1721039378824,0.92157982,62849.0,62848.0,0.000913]
[1721039379179,0.95379621,62849.0,62848.0,0.000913]
[1721039379311,0.98164158,62849.0,62848.0,0.000913]
[1721039380766,0.93749443,62849.0,62848.0,0.000913]
[1721039380957,0.98228557,62849.0,62848.0,0.000913]
[1721039383784,0.60406257,62849.0,62848.0,0.000913]
[1721039384212,0.55927143,62849.0,62848.0,0.01046123]
[1721039384370,0.60365812,62849.0,62848.0,0.01046123]
[1721039384560,0.60355725,62849.0,62848.0,0.01046123]
[1721039385610,0.28533425,62849.0,62848.0,0.01046123]
[1721039387036,0.12622325,62849.0,62848.0,0.01046123]
[1721039387435,0.1261817,62849.0,62848.0,0.01046123]
[1721039388338,0.2852927,62849.0,62848.0,0.01046123]
[1721039389506,0.1261817,62849.0,62848.0,0.01046123]
[1721039390784,0.1259742,62849.0,62848.0,0.01046123]
[1721039393862,0.12598553,62849.0,62848.0,0.01046123]
[1721039397124,0.08193743,62849.0,62848.0,0.01046123]
[1721039397332,0.18582021,62849.0,62848.0,0.01046123]
[1721039397538,1.68461743,62849.0,62848.0,0.01046123]
[1721039397740,2.02369244,62849.0,62848.0,0.01046123]
[1721039398000,2.02369244,62849.0,62848.0,0.000913]
[1721039398001,2.04753491,62849.0,62848.0,0.000913]
[1721039398136,1.97601359,62849.0,62848.0,0.000913]
[1721039399397,2.04751952,62849.0,62848.0,0.000913]
[1721039399593,1.97601359,62849.0,62848.0,0.000913]
[1721039400508,1.98147701,62849.0,62848.0,0.000913]
[1721039400708,2.07197701,62849.0,62848.0,0.000913]
[1721039400861,1.97663359,62849.0,62848.0,0.000913]
[1721039401632,2.06697701,62849.0,62848.0,0.000913]
[1721039401768,2.08263359,62849.0,62848.0,0.000913]
[1721039401969,2.17797701,62849.0,62848.0,0.000913]
[1721039402311,2.17297701,62849.0,62848.0,0.000913]
[1721039402873,2.08843133,62849.0,62848.0,0.000913]
[1721039403096,2.18376003,62849.0,62848.0,0.000913]
[1721039404300,2.08843133,62849.0,62848.0,0.000913]
[1721039404913,2.40665433,62849.0,62848.0,0.000913]
[1721039405119,2.57927629,62849.0,62848.0,0.000913]
[1721039405313,2.67923995,62849.0,62848.0,0.000913]
[1721039405792,2.67923826,62849.0,62848.0,0.000913]
[1721039406331,2.56097407,62849.0,62848.0,0.000913]
[1721039406533,3.06097407,62849.0,62848.0,0.000913]
[1721039407561,2.45225107,62849.0,62848.0,0.000913]
[1721039407764,0.22412383,62849.0,62848.0,0.000913]
[1721039407953,0.13869088,62849.0,62848.0,0.144913]
[1721039408086,0.12177685,62849.0,62848.0,0.144913]
[1721039408266,0.12177685,62849.0,62848.0,0.304027]
[1721039408472,0.12177685,62849.0,62848.0,0.144913]
[1721039409113,0.12177685,62849.0,62848.0,0.304027]
[1721039409589,0.09393743,62849.0,62848.0,0.304027]
[1721039409789,0.12180117,62849.0,62848.0,0.304027]
[1721039412189,0.09393743,62849.0,62848.0,0.622255]
[1721039413232,0.09393743,62849.0,62848.0,0.304027]
[1721039413439,0.12178458,62849.0,62848.0,0.304027]
[1721039414484,0.12178458,62849.0,62848.0,0.622255]
[1721039416179,0.12178458,62849.0,62848.0,0.940483]
[1721039416533,0.04984715,62849.0,62848.0,1.458711]
[1721039416735,0.04984715,62849.0,62848.0,2.26554841]
[1721039416974,0.04984715,62849.0,62848.0,2.28854841]
[1721039417182,0.022,62849.0,62848.0,2.28854841]
[1721039417385,0.022,62849.0,62848.0,2.29818735]
[1721039417617,0.00083,62850.0,62849.0,1.5776945]
[1721039417751,0.00083,62850.0,62849.0,2.89631241]
[1721039419176,0.00183,62850.0,62849.0,4.80603541]
[1721039419344,0.00083,62853.0,62852.0,1.6321225]
[1721039419551,0.00083,62853.0,62852.0,2.05624041]
[1721039420352,0.00083,62853.0,62852.0,1.85624041]
[1721039421006,0.00083,62853.0,62852.0,1.86584623]
[1721039421160,0.00183,62853.0,62852.0,1.86784623]
[1721039421871,0.00283,62853.0,62852.0,1.86884623]
[1721039422612,0.0026385,62853.0,62852.0,1.86884623]
[1721039422770,0.0026385,62853.0,62852.0,1.86865473]
[1721039423120,0.0026385,62853.0,62852.0,1.52744773]
[1721039423939,0.0026385,62853.0,62852.0,1.52763923]
[1721039424346,0.0026385,62853.0,62852.0,1.55063923]
[1721039424907,0.0026385,62853.0,62852.0,2.00944773]
[1721039425324,0.07457593,62853.0,62852.0,1.38791582]
[1721039425540,0.07457593,62853.0,62852.0,1.19941582]
[1721039425766,0.07457593,62853.0,62852.0,1.10812282]
[1721039426058,0.0026385,62853.0,62852.0,1.10812282]
[1721039426862,0.0016385,62853.0,62852.0,1.10712282]
[1721039427267,0.0016385,62853.0,62852.0,1.10612282]
[1721039427464,0.0016385,62853.0,62852.0,1.10812282]
[1721039427687,0.0016385,62853.0,62852.0,1.10712282]
[1721039428094,0.0026385,62853.0,62852.0,1.10812282]
[1721039428474,0.0016385,62853.0,62852.0,1.10612282]
[1721039428673,0.0016385,62853.0,62852.0,1.10812282]
[1721039428872,0.0026385,62853.0,62852.0,1.42632982]
[1721039429377,0.0026385,62853.0,62852.0,1.10812282]
[1721039429979,0.07457593,62853.0,62852.0,1.10812282]
[1721039430773,0.07357593,62853.0,62852.0,1.10712282]
[1721039431106,0.07257593,62853.0,62852.0,1.10512282]
[1721039431268,0.07357593,62853.0,62852.0,1.10612282]
[1721039431472,0.0016385,62853.0,62852.0,1.51562282]
[1721039431669,0.07357593,62853.0,62852.0,1.51562282]
[1721039431872,0.07357593,62853.0,62852.0,1.10612282]
[1721039432073,0.07457593,62853.0,62852.0,1.10812282]
[1721039435464,0.07457593,62853.0,62852.0,1.10903582]
[1721039436412,0.0026385,62853.0,62852.0,1.10903582]
[1721039437939,0.0026385,62853.0,62852.0,1.50653582]
[1721039438079,0.0026385,62853.0,62852.0,1.51853582]
[1721039438678,0.0026385,62853.0,62852.0,1.10903582]
[1721039439252,0.0026385,62853.0,62852.0,1.72706073]
[1721039439451,0.0026385,62853.0,62852.0,1.72725223]
[1721039439602,0.0026385,62853.0,62852.0,1.72706073]
[1721039439803,0.0026385,62853.0,62852.0,1.88215866]
[1721039440025,0.0026385,62853.0,62852.0,1.88215786]
[1721039441592,0.0026385,62853.0,62852.0,1.75006073]
[1721039441826,0.0026385,62853.0,62852.0,1.88215754]
[1721039444400,0.0026385,62853.0,62852.0,1.97265754]
[1721039444830,0.0026385,62853.0,62852.0,2.38215754]
[1721039445006,0.0026385,62853.0,62852.0,2.38215939]
[1721039445409,0.0026385,62853.0,62852.0,2.3821589]
[1721039445830,0.0026385,62853.0,62852.0,2.3823504]
[1721039448235,0.0026385,62853.0,62852.0,1.97284696]
[1721039448440,0.0026385,62853.0,62852.0,2.49105396]
[1721039448652,0.0490772,62865.0,62864.0,1.4582055]
[1721039448919,0.07193743,62873.0,62872.0,0.477159]
[1721039449118,0.099708,62873.0,62872.0,0.885765]
[1721039449296,0.07193743,62873.0,62872.0,0.885765]
[1721039450619,0.07193743,62874.0,62873.0,0.870352]
[1721039450819,0.07193743,62874.0,62873.0,0.885752]
[1721039452249,0.07193743,62874.0,62873.0,0.795252]
[1721039452549,0.07193743,62874.0,62873.0,0.80468404]
[1721039452855,0.07993743,62874.0,62873.0,0.80568404]
[1721039453057,0.08793743,62874.0,62873.0,1.12478504]
[1721039454243,0.016,62874.0,62873.0,1.12478504]
[1721039454430,0.016,62874.0,62873.0,1.75730295]
[1721039454632,0.016,62874.0,62873.0,2.23064601]
[1721039454864,0.016,62874.0,62873.0,2.2306452]
[1721039455090,0.016,62874.0,62873.0,2.09859545]
[1721039455218,0.008,62874.0,62873.0,2.22964713]
[1721039455421,0.012,62874.0,62873.0,2.72664713]
[1721039457097,0.0033477,62884.0,62883.0,2.74424224]
[1721039457308,0.07528513,62884.0,62883.0,2.03797433]
[1721039457904,0.07628513,62884.0,62883.0,2.04497433]
[1721039459025,0.07728513,62884.0,62883.0,2.05197433]
[1721039460631,0.07728513,62884.0,62883.0,1.05684933]
[1721039460834,0.23630713,62884.0,62883.0,1.05684933]
[1721039461179,1.07699713,62884.0,62883.0,0.02334933]
[1721039461374,1.10445906,62884.0,62883.0,0.02334933]
[1721039461572,1.10445906,62884.0,62883.0,0.014]
[1721039462128,1.10345906,62884.0,62883.0,0.007]
[1721039462333,1.10345906,62884.0,62883.0,0.008]
[1721039462715,1.10345906,62884.0,62883.0,0.001]
[1721039462716,1.11045906,62884.0,62883.0,0.001]
[1721039463029,1.11845906,62884.0,62883.0,0.002]
[1721039463232,0.73241406,62884.0,62883.0,0.001]
[1721039463435,0.07193743,62878.0,62877.0,0.359038]
[1721039464892,0.07293743,62878.0,62877.0,0.359038]
[1721039465307,0.07293743,62878.0,62877.0,0.36843695]
[1721039465672,0.07493743,62878.0,62877.0,0.36843695]
[1721039465874,0.07493743,62878.0,62877.0,0.68651795]
[1721039467572,0.06393743,62878.0,62877.0,0.68651795]
[1721039468335,0.06193743,62878.0,62877.0,0.68651795]
[1721039468680,0.06193743,62879.0,62878.0,0.477114]
[1721039468881,0.06193743,62879.0,62878.0,0.48650468]
[1721039469932,0.06493743,62879.0,62878.0,0.48650468]
[1721039471369,0.06393743,62879.0,62878.0,0.48650468]
[1721039471583,0.06193743,62879.0,62878.0,0.48650468]
[1721039472558,0.06193743,62879.0,62878.0,0.48750468]
[1721039473344,0.06193743,62879.0,62878.0,0.48850468]
[1721039476300,0.06193743,62879.0,62878.0,0.80658068]
[1721039476876,0.06193743,62879.0,62878.0,0.48850468]
[1721039478266,0.06193743,62879.0,62878.0,0.80658068]
[1721039478563,0.08943769,62879.0,62878.0,0.80658068]
[1721039479605,0.08945794,62879.0,62878.0,0.80658068]
[1721039480931,0.06193743,62879.0,62878.0,0.80658068]
[1721039481132,0.08945191,62879.0,62878.0,0.80658068]
[1721039481718,0.06193743,62879.0,62878.0,0.80658068]
[1721039482304,0.06193743,62879.0,62878.0,0.89698068]
[1721039485838,0.08948056,62879.0,62878.0,0.89698068]
[1721039486165,0.06193743,62879.0,62878.0,0.89698068]
[1721039486363,0.08948058,62879.0,62878.0,0.89698068]
[1721039486568,0.06193743,62879.0,62878.0,0.89698068]
[1721039486720,0.08948276,62879.0,62878.0,0.89698068]
[1721039487700,0.08948276,62879.0,62878.0,0.57890468]
[1721039489129,0.29528276,62879.0,62878.0,0.10179068]
[1721039489341,0.23527513,62879.0,62878.0,0.01139068]
[1721039489543,0.45431013,62879.0,62878.0,0.01139068]
[1721039489744,0.40969404,62879.0,62878.0,0.01139068]
[1721039489946,0.25065904,62879.0,62878.0,0.01139068]
[1721039490147,0.31065904,62879.0,62878.0,0.01139068]
[1721039490285,0.25065904,62879.0,62878.0,0.01039068]
[1721039490483,0.25065904,62879.0,62878.0,0.00939068]
[1721039490691,0.25165904,62879.0,62878.0,0.00939068]
[1721039491001,0.06193743,62877.0,62876.0,0.259043]
[1721039491208,0.08947513,62877.0,62876.0,0.259043]
[1721039491601,0.08947513,62877.0,62876.0,0.1]
[1721039491797,0.06193743,62873.0,62872.0,0.159052]
[1721039492007,0.08947513,62873.0,62872.0,0.349452]
[1721039492411,0.08950115,62873.0,62872.0,0.349452]
[1721039492626,0.08950122,62873.0,62872.0,0.349452]
[1721039492844,0.16470122,62873.0,62872.0,0.349452]
[1721039493710,0.09050122,62873.0,62872.0,0.355452]
[1721039494325,0.09150122,62873.0,62872.0,0.37089231]
[1721039495807,0.09149535,62873.0,62872.0,0.37089231]
[1721039498217,0.02955792,62873.0,62872.0,1.14860431]
[1721039498420,0.002,62873.0,62872.0,1.14860431]
[1721039498701,0.002,62873.0,62872.0,1.46671031]
[1721039498918,0.002,62873.0,62872.0,1.62882822]
[1721039500035,0.002,62873.0,62872.0,1.65182822]
[1721039501084,0.002,62873.0,62872.0,1.37631031]
[1721039501290,0.002,62873.0,62872.0,1.14860431]
[1721039501482,0.06393743,62873.0,62872.0,1.14860431]
[1721039504289,0.06393743,62873.0,62872.0,0.21184031]
[1721039504290,0.09152381,62873.0,62872.0,0.21184031]
[1721039505419,0.06393743,62873.0,62872.0,0.21184031]
[1721039505623,0.09155282,62873.0,62872.0,0.37089331]
[1721039507644,0.09090282,62873.0,62872.0,0.37089331]
[1721039507842,0.09090282,62873.0,62872.0,0.68899931]
[1721039508653,0.09091865,62873.0,62872.0,0.68899931]
[1721039509877,0.09072724,62873.0,62872.0,0.68899931]
[1721039512054,0.09071704,62873.0,62872.0,0.68899931]
[1721039512558,0.09071704,62873.0,62872.0,1.00710531]
[1721039513674,0.09071704,62873.0,62872.0,0.68899931]
[1721039514689,0.09071704,62873.0,62872.0,1.38711131]
[1721039515138,0.09073809,62873.0,62872.0,1.38711131]
[1721039515340,0.02880066,62873.0,62872.0,1.38711131]
[1721039515541,0.02880058,62873.0,62872.0,1.38711131]
[1721039515745,0.02880059,62873.0,62872.0,1.38711131]
[1721039516754,0.00115859,62873.0,62872.0,1.38711131]
[1721039516984,0.02879268,62873.0,62872.0,1.38711131]
[1721039517339,0.23383011,62873.0,62872.0,0.02144031]
[1721039517692,0.78678151,62873.0,62872.0,0.02144031]
[1721039517937,1.10488251,62873.0,62872.0,0.02144031]
[1721039518128,1.10488251,62873.0,62872.0,0.012]
[1721039518129,1.10136651,62873.0,62872.0,0.012]
[1721039518365,1.14418741,62873.0,62872.0,0.012]
[1721039518956,0.06193743,62865.0,62864.0,0.4771]
[1721039519143,0.08953314,62865.0,62864.0,0.4771]
[1721039519389,0.08953314,62865.0,62864.0,0.48517433]
[1721039520140,0.09053314,62865.0,62864.0,0.49217433]
[1721039520340,0.09053314,62865.0,62864.0,0.49207433]
[1721039520887,0.09053314,62865.0,62864.0,0.50107433]
[1721039520888,0.31416819,62865.0,62864.0,0.50107433]
[1721039521304,0.02955976,62865.0,62864.0,0.97829433]
[1721039521509,0.002,62865.0,62864.0,1.60605924]
[1721039521748,0.002,62865.0,62864.0,1.92420624]
[1721039522572,0.06393743,62865.0,62864.0,0.66014733]
[1721039522773,0.0915235,62865.0,62864.0,0.66014733]
[1721039522945,0.0915235,62865.0,62864.0,0.50107433]
[1721039523099,0.0915235,62865.0,62864.0,0.02407433]
[1721039523680,0.06393743,62865.0,62864.0,0.02407433]
[1721039523882,0.09149501,62865.0,62864.0,0.02407433]
[1721039524090,0.06393743,62865.0,62864.0,0.02407433]
[1721039524328,0.09148603,62865.0,62864.0,0.02407433]
[1721039525409,0.56869903,62865.0,62864.0,0.02407433]
[1721039525557,1.00844103,62865.0,62864.0,0.02407433]
[1721039525971,1.00844103,62865.0,62864.0,0.016]
[1721039526139,0.63029903,62865.0,62864.0,0.016]
[1721039526759,0.6302021,62865.0,62864.0,0.02407433]
[1721039530056,0.63014415,62865.0,62864.0,0.02407433]
[1721039530380,0.63014415,62865.0,62864.0,0.016]
[1721039530641,0.63014415,62865.0,62864.0,0.02407433]
[1721039531589,0.25040215,62865.0,62864.0,0.02407433]
[1721039531896,0.06700096,62865.0,62864.0,0.02498733]
[1721039532128,0.22607196,62865.0,62864.0,0.02498733]
[1721039532305,0.25341999,62865.0,62864.0,0.016913]
[1721039532547,0.25035646,62865.0,62864.0,0.02498733]
[1721039532703,0.09128546,62865.0,62864.0,0.02498733]
[1721039533118,0.06393743,62865.0,62864.0,0.02498733]
[1721039533319,0.02932418,62865.0,62864.0,0.02498733]
[1721039533534,0.002,62865.0,62864.0,1.35187224]
[1721039533747,0.002,62865.0,62864.0,1.77001924]
[1721039534175,0.06393743,62865.0,62864.0,1.45187224]
[1721039534400,0.06393743,62865.0,62864.0,1.22567224]
[1721039535412,0.09134375,62865.0,62864.0,0.12498733]
[1721039538277,0.09134375,62865.0,62864.0,0.02498733]
[1721039538278,0.56855675,62865.0,62864.0,0.02498733]
[1721039538487,0.31041475,62865.0,62864.0,0.02498733]
[1721039538785,0.25041475,62865.0,62864.0,0.02498733]
[1721039539235,0.09134375,62865.0,62864.0,0.02498733]
[1721039539384,0.09130666,62865.0,62864.0,0.02498733]
[1721039542633,0.09130486,62865.0,62864.0,0.02498733]
[1721039542764,0.09130486,62865.0,62864.0,0.18406033]
[1721039544003,0.09130486,62865.0,62864.0,1.16775433]
[1721039544417,0.09129699,62865.0,62864.0,1.16775433]
[1721039544606,0.06393743,62865.0,62864.0,1.16775433]
[1721039546429,0.09122806,62865.0,62864.0,1.16775433]
[1721039549288,0.06393743,62865.0,62864.0,1.16775433]
[1721039549420,0.09122206,62865.0,62864.0,1.16775433]
[1721039552517,0.06393743,62865.0,62864.0,1.16775433]
[1721039552718,0.09121835,62865.0,62864.0,1.16775433]
[1721039554408,0.09121835,62865.0,62864.0,1.25825433]
[1721039555891,0.09120779,62865.0,62864.0,1.25825433]
[1721039556399,0.09120471,62865.0,62864.0,1.25825433]
[1721039559029,0.09119835,62865.0,62864.0,1.25825433]
[1721039562292,0.06393743,62865.0,62864.0,1.25825433]
[1721039562484,0.09116717,62865.0,62864.0,1.25825433]
[1721039563590,0.08457807,62865.0,62864.0,1.25825433]
[1721039565788,0.00306353,62871.0,62867.0,0.159065]
[1721039566029,0.05734833,62868.0,62867.0,0.159065]
[1721039566237,0.08456322,62868.0,62867.0,0.159065]
[1721039567017,0.08456322,62868.0,62867.0,0.160065]
[1721039567449,0.08456322,62868.0,62867.0,0.159065]
[1721039567875,0.08456322,62868.0,62867.0,0.164065]
[1721039568352,0.08456322,62868.0,62867.0,0.167065]
[1721039568606,0.08456322,62868.0,62867.0,0.164065]
[1721039568870,0.05834833,62868.0,62867.0,0.170065]
[1721039569103,0.05834833,62868.0,62867.0,0.011]
[1721039569104,0.08558626,62868.0,62867.0,0.011]
[1721039569350,1.96765726,62868.0,62867.0,0.011]
[1721039569587,2.12645212,62868.0,62867.0,0.011]
[1721039569813,2.37623813,62868.0,62867.0,0.011]
[1721039570299,2.37604667,62868.0,62867.0,0.011]
[1721039570552,2.37604667,62868.0,62867.0,0.006]
[1721039570553,2.3254895,62868.0,62867.0,0.006]
[1721039570790,2.3254895,62868.0,62867.0,0.007]
[1721039570791,2.3334895,62868.0,62867.0,0.007]
[1721039571025,2.3324895,62868.0,62867.0,0.001]
[1721039571253,1.43065387,62865.0,62864.0,0.000913]
[1721039571450,1.9046195,62865.0,62864.0,0.000913]